bitfinex/quotes_ETHUSD_20240718
["timestamp","ask_amount","ask_price","bid_price","bid_amount"]
[1721285673931,2.89163,3458.3,3457.6,0.860075]
[1721285674418,2.89134,3458.6,3457.6,0.860075]
[1721285674796,2.89134,3458.6,3457.6,3.752235]
[1721285674797,2.89151,3458.4,3457.6,3.752235]
[1721285675012,2.89159,3458.3,3457.5,2.4964]
[1721285675229,2.89159,3458.3,3457.7,0.04917233]
[1721285675595,2.89176,3458.1,3457.5,2.4964]
[1721285675820,2.89176,3458.1,3457.8,0.04917233]
[1721285676009,2.89176,3458.1,3457.5,2.4964]
[1721285676219,2.89194,3457.9,3457.6,0.04917233]
[1721285676401,4.86409,3457.7,3457.6,0.04917233]
[1721285676617,2.89228,3457.5,3456.6,2.893]
[1721285677800,2.89235,3457.4,3456.5,2.4617]
[1721285678210,2.8926,3457.1,3456.5,2.4617]
[1721285678622,2.8926,3457.1,3456.2,2.89334]
[1721285678824,2.89269,3457.0,3456.1,2.3571]
[1721285679233,2.89269,3457.0,3455.4,2.89396]
[1721285679234,2.89303,3456.6,3455.6,5.25091]
[1721285679548,2.89303,3456.6,3455.7,2.89376]
[1721285679711,2.89303,3456.6,3455.6,2.3571]
[1721285679913,2.89303,3456.6,3455.6,5.25094]
[1721285680227,2.89303,3456.6,3455.7,2.89376]
[1721285681050,2.89285,3456.8,3455.8,2.89367]
[1721285681351,2.89296,3456.7,3455.8,2.89367]
[1721285681550,2.89296,3456.7,3455.9,0.525077]
[1721285681865,2.89296,3456.7,3455.9,3.418667]
[1721285682353,2.89296,3456.7,3455.9,0.525077]
[1721285682551,9.14796681,3457.2,3455.9,0.525077]
[1721285682552,6.73526681,3457.2,3455.9,0.525077]
[1721285682725,2.89279,3456.9,3456.1,2.89342]
[1721285683112,2.89279,3456.9,3456.2,0.04452594]
[1721285684020,2.86779,3456.9,3456.2,0.04452594]
[1721285684217,6.73526681,3457.2,3456.2,2.93785594]
[1721285684423,6.73526681,3457.2,3456.4,2.3629]
[1721285684864,6.73526681,3457.2,3456.5,0.04452594]
[1721285685437,6.73526681,3457.2,3456.5,2.93760594]
[1721285685835,12.52039681,3457.2,3456.5,0.04452594]
[1721285686159,2.89268,3457.0,3456.1,2.89339]
[1721285686358,4.14472868,3457.0,3456.6,0.04452594]
[1721285686524,9.62780681,3457.2,3456.3,2.89321]
[1721285686729,0.55,3457.1,3456.3,2.89321]
[1721285686963,0.55,3457.1,3456.4,0.04452594]
[1721285687164,2.89274,3457.0,3456.4,0.04452594]
[1721285687364,1.01780068,3456.9,3456.4,0.04452594]
[1721285687535,3.91058068,3456.9,3456.1,2.89343]
[1721285687861,2.89278,3456.9,3456.1,2.89343]
[1721285688068,0.55,3457.1,3456.2,0.04494508]
[1721285689438,2.89277,3456.9,3456.2,0.04494508]
[1721285689680,2.89277,3456.9,3454.9,0.89265294]
[1721285689681,2.89319,3456.4,3455.5,2.89385]
[1721285689962,2.89319,3456.4,3455.3,2.2983]
[1721285689963,3.44333,3456.3,3455.3,5.19239]
[1721285690126,4.86536,3456.2,3455.3,5.19239]
[1721285690328,2.89346,3456.1,3455.3,5.19239]
[1721285692276,4.86535,3456.2,3455.0,2.89428]
[1721285692489,3.984975,3456.1,3455.0,2.89428]
[1721285692780,4.86568,3455.8,3455.0,2.89428]
[1721285692963,4.86568,3455.8,3454.6,5.15652]
[1721285692964,1.972,3455.4,3454.6,5.15652]
[1721285693544,4.86604,3455.4,3454.6,5.15652]
[1721285694187,2.89412,3455.3,3454.6,2.2619]
[1721285694652,2.8942,3455.2,3454.2,2.3486]
[1721285695056,2.8942,3455.2,3454.2,5.24361]
[1721285695277,2.89432,3455.1,3454.2,5.24361]
[1721285695468,2.8942,3455.2,3454.2,2.3486]
[1721285695469,2.89446,3454.9,3454.2,2.3486]
[1721285696070,2.89446,3454.9,3454.3,10.32749848]
[1721285697071,2.89454,3454.8,3454.3,10.32749848]
[1721285697271,2.89466,3454.7,3454.3,10.32749848]
[1721285697470,2.89469,3454.6,3453.8,2.4191]
[1721285697826,2.89469,3454.6,3453.8,2.950552]
[1721285697959,2.89454,3454.8,3453.8,2.950552]
[1721285697960,2.89479,3454.5,3453.8,2.950552]
[1721285698163,2.89479,3454.5,3453.8,2.4191]
[1721285698811,2.89486,3454.4,3453.8,2.4191]
[1721285699014,10.19924491,3455.2,3453.4,2.89569]
[1721285699015,1.972,3454.2,3453.4,2.3921]
[1721285699166,2.89517,3454.1,3453.4,2.3921]
[1721285699359,1.972,3454.2,3452.9,5.28814]
[1721285699360,0.55,3454.0,3452.9,5.28814]
[1721285699621,0.55,3454.0,3453.0,4.528814]
[1721285699901,0.55,3454.1,3453.0,4.528814]
[1721285700267,0.55,3454.1,3453.0,0.528814]
[1721285700605,4.86704,3454.2,3453.2,2.89584]
[1721285701099,4.86704,3454.2,3452.9,2.3921]
[1721285701100,1.972,3454.2,3453.5,2.89558]
[1721285701287,7.76152,3454.6,3453.6,2.89551]
[1721285701488,9.62982681,3454.8,3453.7,5.26244298]
[1721285701701,9.62982681,3454.8,3453.7,5.3051923]
[1721285702007,6.73526681,3454.8,3454.0,2.89518]
[1721285702367,6.73526681,3454.8,3454.1,0.04274245]
[1721285702571,2.89446,3454.9,3454.1,0.04274245]
[1721285702891,2.89446,3454.9,3454.0,2.89518]
[1721285703071,2.89446,3454.9,3454.2,0.04274245]
[1721285703272,2.89446,3454.9,3454.0,3.69947348]
[1721285703471,1.972,3455.0,3454.3,0.04274245]
[1721285703699,1.972,3455.0,3452.6,2.56710196]
[1721285703700,2.89485,3454.5,3453.2,5.14975]
[1721285704016,2.89503,3454.2,3453.3,6.410725]
[1721285704371,2.89485,3454.5,3453.3,3.514975]
[1721285704604,0.55,3454.4,3453.6,2.89549]
[1721285704868,0.55,3454.4,3453.7,0.04274245]
[1721285705067,0.55,3454.4,3453.8,0.29382325]
[1721285705305,3.44478,3454.5,3453.9,0.04264963]
[1721285706016,2.89486,3454.4,3453.5,2.89557]
[1721285706185,2.89486,3454.4,3454.0,0.04264619]
[1721285706383,2.89486,3454.4,3453.5,2.89557]
[1721285706627,2.89486,3454.4,3454.1,0.04264619]
[1721285706927,2.8952,3454.0,3453.3,3.0]
[1721285707121,2.8952,3454.0,3453.2,2.2539]
[1721285707275,2.8952,3454.0,3453.2,5.2539]
[1721285707681,2.8952,3454.0,3453.2,6.358495]
[1721285707886,2.89495,3454.3,3453.4,2.89563]
[1721285708396,3.44503,3454.2,3453.4,2.89563]
[1721285708919,3.44503,3454.2,3453.2,6.358495]
[1721285708920,4.86675,3454.6,3453.5,2.89554]
[1721285709706,4.86675,3454.6,3453.7,2.89538]
[1721285709879,1.972,3454.6,3453.7,2.89538]
[1721285710472,1.972,3454.6,3453.9,2.3898]
[1721285710700,2.89462,3454.7,3454.0,0.528512]
[1721285710910,2.89444,3454.9,3454.0,0.528512]
[1721285710911,0.55,3454.6,3454.0,0.528512]
[1721285711129,0.55,3454.8,3454.0,3.423672]
[1721285711409,0.55,3454.9,3454.0,3.423672]
[1721285711581,3.44444,3454.9,3454.0,3.423672]
[1721285712227,3.44444,3454.9,3453.9,2.3898]
[1721285712228,2.89461,3454.7,3453.9,2.3898]
[1721285712511,2.11156949,3454.9,3453.2,5.89586]
[1721285712512,2.89502,3454.2,3453.5,2.3639]
[1721285713614,2.522,3454.6,3453.6,2.8955]
[1721285713775,2.522,3454.6,3453.8,2.89534]
[1721285714687,5.4167,3454.6,3453.7,0.82594]
[1721285715011,5.4167,3454.6,3453.7,3.72138]
[1721285715881,2.89529,3453.9,3452.8,2.89619]
[1721285716082,2.89529,3453.9,3452.9,2.3675]
[1721285716281,4.8671,3454.2,3453.2,2.89586]
[1721285716480,0.55,3454.1,3453.2,2.89586]
[1721285716706,2.89486,3454.4,3453.4,2.89562]
[1721285717008,3.44494,3454.3,3453.4,2.89562]
[1721285719694,1.972,3454.7,3453.7,2.89538]
[1721285719894,2.89471,3454.6,3453.7,2.89538]
[1721285720191,2.89471,3454.6,3453.5,2.3071]
[1721285720192,2.89471,3454.6,3453.8,2.93665847]
[1721285720404,2.89471,3454.6,3453.9,0.58321785]
[1721285720989,2.89471,3454.6,3454.0,0.04130847]
[1721285721679,1.972,3454.7,3454.0,0.04130847]
[1721285721843,2.89453,3454.8,3454.0,2.93648847]
[1721285724192,2.89364499,3454.8,3454.0,2.93648847]
[1721285724430,2.89364499,3454.8,3454.1,0.35197063]
[1721285724931,2.89364499,3454.8,3454.2,0.04130847]
[1721285726420,2.89462,3454.7,3454.2,0.04130847]
[1721285726829,2.89462,3454.7,3453.9,0.58321785]
[1721285727012,2.89462,3454.7,3453.7,2.89543]
[1721285727013,2.8947,3454.6,3454.3,0.04130847]
[1721285727226,2.8947,3454.6,3453.8,2.89533]
[1721285727542,2.8947,3454.6,3453.9,0.04126384]
[1721285728056,1.972,3454.7,3453.9,0.04126384]
[1721285728258,2.8948,3454.5,3453.9,0.04126384]
[1721285728462,2.89486,3454.4,3453.6,2.89548]
[1721285728760,2.89486,3454.4,3454.0,0.04123294]
[1721285728946,2.89477,3454.5,3453.7,3.415678]
[1721285729174,2.89477,3454.5,3453.8,0.04125354]
[1721285730654,2.89487,3454.4,3453.8,0.04125354]
[1721285730839,2.89487,3454.4,3453.8,0.52438135]
[1721285731159,2.89487,3454.4,3453.9,0.04125354]
[1721285731957,2.89503,3454.2,3453.9,0.04125354]
[1721285732170,2.89519,3454.0,3453.9,0.04125354]
[1721285732368,2.89519,3454.0,3453.5,2.3071]
[1721285732578,2.89529,3453.9,3453.5,2.3071]
[1721285732863,1.972,3454.3,3453.6,0.03990868]
[1721285733025,1.972,3454.7,3453.6,2.93541868]
[1721285733225,2.89477,3454.5,3453.6,2.93541868]
[1721285733829,5.78962,3454.5,3453.6,2.93541868]
[1721285734854,2.89486,3454.4,3453.6,2.93541868]
[1721285735073,2.89486,3454.4,3453.7,0.83689087]
[1721285735369,2.89486,3454.4,3453.8,0.03997727]
[1721285737086,6.73526681,3455.1,3454.3,2.89492]
[1721285737379,6.73526681,3455.1,3454.5,2.89477]
[1721285737594,6.73526681,3455.1,3454.4,2.3511]
[1721285737595,9.62953681,3455.1,3454.4,2.3511]
[1721285737759,2.89441,3455.0,3454.6,0.03992925]
[1721285737960,2.89452,3454.8,3454.4,2.3511]
[1721285738163,5.78911,3454.8,3454.7,0.03992925]
[1721285738472,2.8948,3454.5,3453.9,2.2906]
[1721285739738,2.89486,3454.4,3453.9,2.2906]
[1721285739980,5.78978,3454.4,3453.9,2.2906]
[1721285740682,2.89497,3454.3,3453.9,2.2906]
[1721285741243,2.89497,3454.3,3453.4,2.2774]
[1721285741244,2.89519,3454.0,3453.4,2.2774]
[1721285742556,2.89503,3454.2,3453.4,2.2774]
[1721285743090,2.89512,3454.1,3453.4,2.2774]
[1721285743258,2.89486,3454.4,3453.5,2.8956]
[1721285743460,2.89469,3454.6,3453.6,0.05789789]
[1721285743680,2.89478,3454.5,3453.7,0.52308979]
[1721285743861,2.89478,3454.5,3453.8,0.05789715]
[1721285744204,2.8949,3454.4,3453.8,0.05789715]
[1721285744544,2.89469,3454.6,3453.8,2.2774]
[1721285744945,2.89478,3454.5,3453.8,2.2774]
[1721285745246,2.89478,3454.5,3453.8,2.84699098]
[1721285745984,1.972,3454.8,3453.8,2.2774]
[1721285746187,2.89527,3453.9,3453.8,2.2774]
[1721285746387,2.89527,3453.9,3453.2,3.0]
[1721285746388,2.89527,3453.9,3453.3,2.4002]
[1721285747124,2.89538,3453.8,3453.3,2.4002]
[1721285748428,2.89538,3453.8,3453.3,2.9997302]
[1721285749323,2.89503,3454.2,3453.3,2.9997302]
[1721285749727,2.89511,3454.1,3453.3,5.8955002]
[1721285749897,2.89511,3454.1,3453.4,0.03605822]
[1721285750080,2.89511,3454.1,3453.5,0.59315584]
[1721285750512,4.86653,3454.8,3453.6,0.03605822]
[1721285750731,4.86653,3454.8,3453.7,2.3421]
[1721285750732,2.89453,3454.8,3453.7,2.3421]
[1721285750889,2.89453,3454.8,3453.7,2.37825424]
[1721285751093,2.89471,3454.6,3453.8,2.81364049]
[1721285751294,2.89471,3454.6,3453.8,0.33330211]
[1721285752524,2.89453,3454.8,3453.9,1.00657587]
[1721285752682,2.89453,3454.8,3453.8,0.33330211]
[1721285753034,2.84453,3454.8,3454.0,2.93123824]
[1721285753221,2.84453,3454.8,3454.0,2.89518]
[1721285753407,2.84453,3454.8,3454.1,0.03605824]
[1721285753722,2.89436,3455.0,3454.1,0.03605824]
[1721285753931,6.73526681,3455.1,3454.1,0.03605824]
[1721285753932,2.89446,3454.9,3454.1,0.03605824]
[1721285754113,2.89446,3454.9,3454.1,0.74669353]
[1721285754339,2.89446,3454.9,3454.2,2.3169]
[1721285754513,2.89446,3454.9,3454.2,2.35274905]
[1721285756538,2.89453,3454.8,3454.2,2.35274905]
[1721285758440,2.89476,3454.6,3454.2,0.03584905]
[1721285758625,2.89483,3454.5,3454.2,0.03584905]
[1721285758836,2.89483,3454.5,3453.8,2.488]
[1721285759204,2.89486,3454.4,3453.9,0.03465527]
[1721285761610,2.89498,3454.3,3453.9,0.03465527]
[1721285762339,1.972,3454.7,3453.9,0.2869208]
[1721285762870,2.89469,3454.6,3453.9,0.2869208]
[1721285765147,2.89478,3454.5,3453.9,0.2869208]
[1721285765349,2.89488,3454.4,3453.9,0.03465527]
[1721285765735,1.972,3454.7,3453.9,0.03465527]
[1721285765937,2.89518,3454.1,3453.3,2.3151]
[1721285766240,2.89497,3454.3,3453.3,2.3151]
[1721285766241,2.89521,3454.0,3453.4,0.03475461]
[1721285766441,2.89521,3454.0,3453.4,0.55932507]
[1721285767454,1.972,3454.3,3453.4,0.55932507]
[1721285767762,2.89487,3454.4,3453.4,0.55932507]
[1721285768442,4.86665,3454.7,3453.4,0.55932507]
[1721285768443,2.89517,3454.1,3453.4,0.55932507]
[1721285768888,2.2602,3454.0,3453.4,0.03475461]
[1721285769191,2.89545,3453.7,3452.7,2.89627]
[1721285769398,2.89545,3453.7,3453.5,0.03396272]
[1721285769583,2.89545,3453.7,3452.7,2.89627]
[1721285769761,2.89545,3453.7,3452.8,1.92461817]
[1721285769958,2.89545,3453.7,3452.8,0.91772992]
[1721285770158,4.8673,3453.9,3453.0,2.89603]
[1721285770361,2.8953,3453.9,3453.1,0.03404154]
[1721285771492,2.89521,3454.0,3453.2,2.4883]
[1721285771661,2.89521,3454.0,3453.3,0.74059651]
[1721285771864,2.89529,3453.9,3453.3,0.77463462]
[1721285773708,2.8952,3454.0,3453.3,0.77463462]
[1721285776784,2.89505,3454.2,3453.5,0.03403468]
[1721285777307,2.89511,3454.1,3453.5,0.03403468]
[1721285777604,2.89511,3454.1,3453.3,2.89577]
[1721285777810,2.89511,3454.1,3453.3,4.02377]
[1721285778010,2.89511,3454.1,3453.4,0.03394558]
[1721285778372,2.89528,3453.9,3453.4,0.03394558]
[1721285778899,2.89503,3454.2,3453.4,0.03394558]
[1721285780705,2.89512,3454.1,3453.3,2.89577]
[1721285780909,2.89512,3454.1,3453.5,0.03404497]
[1721285781210,9.62977681,3454.9,3454.2,2.3004]
[1721285781211,6.73526681,3454.9,3454.2,2.3004]
[1721285781410,2.89427,3455.1,3454.2,5.19542]
[1721285781709,2.89427,3455.1,3454.3,0.03401756]
[1721285782005,2.89436,3455.0,3454.3,0.53038127]
[1721285782569,2.89424,3455.2,3454.3,0.53038127]
[1721285783082,2.89428,3455.1,3454.3,0.53038127]
[1721285784004,2.89428,3455.1,3454.3,3.42530127]
[1721285784615,2.89403,3455.4,3454.5,2.89476]
[1721285784802,2.89403,3455.4,3454.6,0.63199313]
[1721285785111,2.89411,3455.3,3454.7,0.03401756]
[1721285786085,2.89375,3455.8,3454.8,2.37648424]
[1721285786292,2.8936,3455.9,3454.9,3.39043687]
[1721285786613,2.8936,3455.9,3454.9,0.49600687]
[1721285786807,2.8936,3455.9,3455.0,2.9280695]
[1721285788682,2.89344,3456.1,3455.1,2.3662]
[1721285788901,2.89344,3456.1,3455.2,0.28959264]
[1721285789101,2.89344,3456.1,3455.2,3.21710334]
[1721285789299,2.89344,3456.1,3455.2,3.18377264]
[1721285789518,2.89344,3456.1,3455.3,0.0333307]
[1721285790425,2.89328,3456.3,3455.3,2.9274207]
[1721285790725,2.89335,3456.2,3455.3,3.77517603]
[1721285791217,2.89353,3456.0,3455.3,0.88108603]
[1721285791521,2.89353,3456.0,3455.3,0.0333307]
[1721285791816,2.89353,3456.0,3455.1,5.26045]
[1721285792032,2.89353,3456.0,3455.2,0.0333307]
[1721285792195,2.89363,3455.9,3455.2,0.0333307]
[1721285792629,2.89363,3455.9,3455.2,0.56270877]
[1721285792832,2.89363,3455.9,3455.2,0.52937807]
[1721285793394,1.972,3456.0,3455.2,0.52937807]
[1721285794101,2.89353,3456.0,3455.2,0.52937807]
[1721285795003,2.89353,3456.0,3455.3,0.0333307]
[1721285796330,2.89364,3455.9,3455.3,0.0333307]
[1721285796520,2.89364,3455.9,3455.1,5.26045]
[1721285796914,2.89364,3455.9,3455.2,0.0330807]
[1721285797314,2.89364,3455.9,3455.1,5.26045]
[1721285797737,2.89364,3455.9,3455.2,0.0330807]
[1721285797917,2.89375,3455.8,3455.2,0.0330807]
[1721285798255,2.89375,3455.8,3455.3,0.0330807]
[1721285798751,2.89375,3455.8,3455.1,2.3662]
[1721285798952,2.89375,3455.8,3455.4,0.0330807]
[1721285799151,2.89375,3455.8,3455.1,2.3662]
[1721285799452,2.89375,3455.8,3455.1,2.892254]
[1721285799618,2.89375,3455.8,3455.2,0.0330807]
[1721285800135,2.894,3455.5,3455.2,0.0330807]
[1721285800515,1.972,3455.9,3454.9,2.4246]
[1721285800834,1.972,3455.9,3455.0,0.24246]
[1721285801034,2.89368,3455.8,3455.1,0.0330807]
[1721285801344,2.89379,3455.7,3455.1,0.0330807]
[1721285801746,2.89379,3455.7,3454.9,5.31901]
[1721285802210,2.89379,3455.7,3455.0,0.0330807]
[1721285803042,2.8935,3456.1,3455.2,2.89417]
[1721285803434,2.8935,3456.1,3455.3,0.0330807]
[1721285803623,2.8935,3456.1,3455.3,2.5088807]
[1721285804020,2.8935,3456.1,3455.3,5.4029807]
[1721285805031,3.81537987,3456.1,3455.3,5.4029807]
[1721285807243,2.89335,3456.2,3455.3,5.4029807]
[1721285808764,2.89335,3456.2,3455.4,2.894]
[1721285808979,2.89335,3456.2,3455.4,2.92673487]
[1721285809185,1.972,3456.8,3455.8,2.89368]
[1721285809397,3.0,3456.6,3455.9,2.4758]
[1721285809683,1.17072668,3456.5,3455.9,2.4758]
[1721285809885,2.89311,3456.5,3456.0,0.0326801]
[1721285810184,3.0,3456.5,3456.0,0.0326801]
[1721285810784,4.86457,3457.2,3456.0,0.09054889]
[1721285810956,4.86457,3457.2,3456.2,2.4844]
[1721285811283,2.89257,3457.2,3456.2,2.4844]
[1721285811645,9.62761681,3457.4,3456.3,2.89326]
[1721285811646,2.89259,3457.1,3456.3,2.89326]
[1721285812744,2.89259,3457.1,3456.4,0.03253636]
[1721285814549,9.62761681,3457.4,3456.4,2.92568636]
[1721285814754,3.0,3457.3,3456.4,3.49235848]
[1721285814973,3.0,3457.3,3456.4,3.45982212]
[1721285815377,2.89235,3457.4,3456.4,3.45982212]
[1721285815786,2.89235,3457.4,3456.5,2.92541922]
[1721285815955,2.89235,3457.4,3456.4,3.45982212]
[1721285816155,2.89235,3457.4,3456.6,0.03238922]
[1721285816362,2.89235,3457.4,3456.6,2.338]
[1721285816567,5.78476,3457.4,3456.7,0.03238922]
[1721285817556,2.89243,3457.3,3456.7,0.03238922]
[1721285818770,2.89235,3457.4,3456.7,0.03238922]
[1721285819090,2.89235,3457.4,3456.7,0.61817236]
[1721285822436,2.89217,3457.7,3456.7,3.51107236]
[1721285823332,2.89235,3457.4,3456.7,3.51107236]
[1721285824039,2.89235,3457.4,3456.7,0.61817236]
[1721285825419,2.89235,3457.4,3456.7,3.51109236]
[1721285825625,2.89235,3457.4,3456.8,0.58490924]
[1721285825826,2.89235,3457.4,3456.9,0.03193753]
[1721285826336,2.89235,3457.4,3456.7,2.89292]
[1721285826544,2.89235,3457.4,3457.0,0.03193753]
[1721285826754,2.89235,3457.4,3456.7,2.89292]
[1721285827337,2.89235,3457.4,3456.6,2.338]
[1721285827338,2.89244,3457.3,3456.8,0.03193753]
[1721285827748,2.89244,3457.3,3456.6,2.338]
[1721285827932,2.89244,3457.3,3456.9,0.03193753]
[1721285828102,2.89244,3457.3,3456.6,2.338]
[1721285828307,2.89244,3457.3,3457.0,0.03193753]
[1721285828538,2.89244,3457.3,3456.6,2.338]
[1721285828719,2.89244,3457.3,3457.1,0.03193753]
[1721285828912,2.89244,3457.3,3456.6,2.338]
[1721285829429,2.89244,3457.3,3456.7,0.03193753]
[1721285832215,3.470911,3457.3,3456.7,0.03193753]
[1721285834319,2.89244,3457.3,3456.7,0.03193753]
[1721285834940,2.89269,3457.0,3456.7,0.03193753]
[1721285835140,2.89269,3457.0,3456.5,2.4283]
[1721285835365,2.89269,3457.0,3456.8,0.03081672]
[1721285835568,2.89269,3457.0,3456.5,2.4283]
[1721285835772,2.89226,3457.5,3456.9,0.03081672]
[1721285836083,0.57348767,3457.4,3456.5,2.4283]
[1721285836280,2.89251,3457.2,3456.6,0.03081672]
[1721285837593,5.78509,3457.2,3456.6,0.03081672]
[1721285837799,4.86451,3457.2,3456.6,0.03081672]
[1721285837971,0.54379977,3457.1,3456.6,0.03081672]
[1721285838775,2.89269,3457.0,3456.6,0.03081672]
[1721285840017,2.89293,3456.7,3456.6,0.03081672]
[1721285840167,2.89293,3456.7,3456.1,2.4669]
[1721285840369,2.89293,3456.7,3456.6,0.03081672]
[1721285840604,2.89293,3456.7,3456.1,2.4669]
[1721285840900,2.89277,3456.9,3456.1,2.4669]
[1721285841118,1.972,3457.2,3456.2,0.03081672]
[1721285841119,4.86451,3457.2,3456.2,0.03081672]
[1721285841405,4.86451,3457.2,3456.2,0.08867803]
[1721285841702,2.89251,3457.2,3456.3,0.03081672]
[1721285842096,2.89251,3457.2,3456.1,5.36032]
[1721285842403,2.89251,3457.2,3456.4,2.92399672]
[1721285842589,2.89235,3457.4,3456.4,2.89318]
[1721285842796,2.89235,3457.4,3456.6,2.89301]
[1721285843372,2.89235,3457.4,3456.7,0.03088855]
[1721285844405,4.05506767,3457.4,3456.7,0.03088855]
[1721285844615,4.05506767,3457.4,3456.8,2.4367]
[1721285845220,4.05506767,3457.4,3456.9,0.03088855]
[1721285846533,2.89227,3457.5,3456.9,0.03088855]
[1721285846830,1.972,3457.2,3456.9,0.03088855]
[1721285846990,1.972,3457.2,3456.4,5.27211]
[1721285847197,4.86452,3457.2,3456.4,5.27211]
[1721285847441,4.86452,3457.2,3456.5,0.03088855]
[1721285847729,5.640199,3457.2,3456.5,0.03088855]
[1721285848941,2.89261,3457.1,3456.5,0.03088855]
[1721285850029,2.89279,3456.9,3456.5,0.03088855]
[1721285850392,2.747679,3457.2,3456.5,0.03088855]
[1721285850595,0.775679,3457.2,3456.6,2.3802]
[1721285850841,3.668199,3457.2,3456.6,2.3802]
[1721285851046,3.668199,3457.2,3456.7,0.03088171]
[1721285852318,0.8532539,3457.1,3456.7,0.03088171]
[1721285853619,2.89252,3457.2,3456.7,0.03088171]
[1721285856457,4.86434,3457.4,3456.7,0.03088171]
[1721285856458,2.89234,3457.4,3456.7,0.03088171]
[1721285856667,3.0,3457.3,3456.7,0.03088171]
[1721285856866,5.89222,3457.6,3456.7,0.03088171]
[1721285857019,5.89222,3457.6,3456.6,2.3802]
[1721285857221,5.89222,3457.6,3456.7,0.55816398]
[1721285857858,0.60696992,3457.5,3456.7,3.45106398]
[1721285858160,5.89222,3457.6,3456.7,3.45106398]
[1721285858356,0.60699089,3457.5,3456.7,3.45106398]
[1721285858654,2.89233,3457.5,3456.8,2.3599]
[1721285858953,2.89237,3457.4,3456.9,0.03077567]
[1721285859870,0.57847,3457.4,3456.9,0.03077567]
[1721285860158,2.89252,3457.2,3456.8,2.3599]
[1721285860526,2.89252,3457.2,3456.9,0.03077225]
[1721285860723,2.89238,3457.4,3456.9,0.03077225]
[1721285860929,2.89244,3457.3,3456.9,0.03077225]
[1721285861367,3.470917,3457.3,3456.9,0.03077225]
[1721285862025,0.578477,3457.3,3456.9,0.03077225]
[1721285862228,0.578477,3457.3,3456.4,2.3827]
[1721285862435,0.578477,3457.3,3456.5,0.02987112]
[1721285862626,2.89268,3457.0,3456.5,0.02987112]
[1721285864373,0.821,3456.7,3456.5,0.02987112]
[1721285866972,2.89278,3456.9,3456.5,0.02987112]
[1721285867278,0.821,3456.8,3456.5,0.02987112]
[1721285868585,0.821,3456.6,3456.5,0.02987112]
[1721285871137,6.978406,3456.6,3456.5,0.02987112]
[1721285871546,2.8933,3456.3,3455.7,2.3462]
[1721285871770,0.821,3455.9,3455.7,2.3462]
[1721285872073,0.821,3455.9,3455.8,0.02890295]
[1721285872377,0.821,3455.9,3455.7,2.3462]
[1721285872775,0.821,3455.9,3455.8,0.02890295]
[1721285873175,0.821,3455.9,3455.7,2.3462]
[1721285873345,0.821,3455.9,3455.8,0.02890295]
[1721285873772,0.821,3455.9,3455.7,2.3462]
[1721285874075,0.821,3455.9,3455.8,0.02890295]
[1721285874278,2.89344,3456.1,3455.7,2.3462]
[1721285874488,2.89344,3456.1,3455.8,0.02890295]
[1721285874784,2.89341,3456.2,3455.7,2.3462]
[1721285874984,2.89341,3456.2,3455.9,0.02890295]
[1721285875182,2.89341,3456.2,3455.7,2.3462]
[1721285875559,2.89344,3456.1,3455.8,0.02890295]
[1721285876082,2.89318,3456.4,3455.9,0.02890295]
[1721285876283,2.89318,3456.4,3455.7,2.3462]
[1721285876487,4.863,3456.7,3455.8,0.23462]
[1721285876992,2.89312,3456.5,3455.8,0.23462]
[1721285877346,2.8932,3456.4,3455.9,0.02890295]
[1721285877762,2.8932,3456.4,3455.7,2.3462]
[1721285877949,2.8932,3456.4,3456.0,0.02890295]
[1721285878155,2.8932,3456.4,3455.7,2.3462]
[1721285878349,2.8932,3456.4,3456.1,0.02890295]
[1721285878575,0.578621,3456.3,3455.7,2.3462]
[1721285878759,5.78652,3456.3,3456.2,0.02890295]
[1721285878951,2.89348,3456.1,3455.7,2.3462]
[1721285879344,2.89348,3456.1,3455.2,2.89416]
[1721285879345,2.89326,3456.3,3455.8,0.02890295]
[1721285879581,2.8936,3455.9,3455.8,0.02890295]
[1721285879783,2.89378,3455.7,3455.4,2.3402]
[1721285879996,3.472313,3455.9,3455.0,2.3636]
[1721285879997,2.89395,3455.5,3455.0,2.3636]
[1721285880358,4.86377,3455.7,3455.0,2.3636]
[1721285880359,2.89413,3455.3,3455.0,2.3636]
[1721285880559,1.97,3455.7,3454.6,2.4158]
[1721285880560,2.89418,3455.2,3454.6,2.4158]
[1721285880802,2.842713,3455.9,3454.6,2.4158]
[1721285880803,2.89437,3455.0,3454.6,2.4158]
[1721285882589,2.89437,3455.0,3454.1,2.4663]
[1721285882791,2.89437,3455.0,3454.2,0.536148]
[1721285882953,2.89446,3454.9,3454.2,0.536148]
[1721285883149,1.97,3455.2,3454.1,2.4663]
[1721285883150,2.89466,3454.7,3454.1,2.4663]
[1721285883353,2.89456,3454.8,3454.1,2.4663]
[1721285883588,2.89478,3454.5,3453.7,2.453]
[1721285883892,5.78961,3454.5,3453.7,2.453]
[1721285884495,2.89487,3454.4,3453.7,2.453]
[1721285884998,2.89487,3454.4,3453.8,0.02885229]
[1721285886094,2.89461,3454.7,3453.8,0.02885229]
[1721285886793,4.86443,3455.0,3453.9,2.26]
[1721285887187,2.89443,3455.0,3454.0,0.02900957]
[1721285887370,2.8946,3454.8,3454.1,2.26]
[1721285887568,2.89443,3455.0,3454.2,0.51842496]
[1721285887886,2.89443,3455.0,3454.3,0.02900957]
[1721285887887,2.89452,3454.8,3454.3,0.02900957]
[1721285888080,2.89452,3454.8,3454.2,0.51842496]
[1721285888081,2.89443,3455.0,3454.2,0.51842496]
[1721285888492,2.89443,3455.0,3454.3,0.02900957]
[1721285888899,2.89419,3455.2,3454.3,0.02900957]
[1721285889061,2.89419,3455.2,3454.4,0.85975245]
[1721285889393,2.89419,3455.2,3454.5,2.38397964]
[1721285889893,2.89413,3455.3,3454.5,2.38397964]